lending/lending_fUSD_20240411
["ID","MTS","AMOUNT","RATE_DAILY","PERIOD"]
[322193124,1712869846286,-500.0,0.00027397,2]
[322193125,1712869846296,-500.0,0.00027397,2]
[322193126,1712869846305,-500.0,0.00027397,2]
[322193127,1712869846315,-500.0,0.00027397,2]
[322193128,1712869846325,-500.0,0.00027397,2]
[322193129,1712869846334,-500.0,0.00027397,2]
[322193130,1712869846344,-897.54,0.00027397,2]
[322193131,1712869846355,-684.68,0.00027397,2]
[322193132,1712869846364,-500.0,0.00027397,2]
[322193133,1712869846375,-500.0,0.00027397,2]
[322193134,1712869846384,-500.0,0.00027397,2]
[322193135,1712869846394,-500.0,0.00027397,2]
[322193136,1712869846404,-500.0,0.00027397,2]
[322193137,1712869846413,-500.0,0.00027397,2]
[322193138,1712869846422,-543.38,0.00027397,2]
[322193139,1712869846431,-500.0,0.00027397,2]
[322193140,1712869846440,-500.0,0.00027397,2]
[322193141,1712869846451,-500.0,0.00027397,2]
[322193142,1712869846460,-809.17,0.00027397,2]
[322193143,1712869846470,-500.0,0.00027397,2]
[322193144,1712869846479,-698.14,0.00027397,2]
[322193145,1712869846490,-500.0,0.00027397,2]
[322193146,1712869846500,-500.0,0.00027397,2]
[322193147,1712869846510,-500.0,0.00027397,2]
[322193148,1712869846519,-500.0,0.00027397,2]
[322193149,1712869846529,-1067.08,0.00027397,2]
[322193150,1712869846540,-500.0,0.00027397,2]
[322193151,1712869846549,-1021.38,0.00027397,2]
[322193152,1712869846560,-500.0,0.00027397,2]
[322193153,1712869846569,-784.4,0.00027397,2]
[322193154,1712869846580,-500.0,0.00027397,2]
[322193155,1712869846589,-500.0,0.00027397,2]
[322193156,1712869846598,-500.0,0.00027397,2]
[322193163,1712869846675,-1207.29,0.00027397,2]
[322193167,1712869846685,-500.0,0.00027397,2]
[322193170,1712869846694,-853.95,0.00027397,2]
[322193173,1712869846703,-1154.75,0.00027397,2]
[322193176,1712869846712,-500.0,0.00027397,2]
[322193178,1712869846722,-500.0,0.00027397,2]
[322193181,1712869846731,-1500.39,0.00027397,2]
[322193184,1712869846740,-500.0,0.00027397,2]
[322193187,1712869846750,-500.0,0.00027397,2]
[322193189,1712869846759,-500.0,0.00027397,2]
[322193193,1712869846768,-500.0,0.00027397,2]
[322193195,1712869846777,-500.0,0.00027397,2]
[322193198,1712869846786,-500.79309117,0.00027397,2]
[322193201,1712869846795,-1102.48,0.00027397,2]
[322193203,1712869846805,-500.0,0.00027397,2]
[322193204,1712869846814,-500.0,0.00027397,2]
[322193205,1712869846824,-500.0,0.00027397,2]
[322193206,1712869846833,-500.0,0.00027397,2]
[322193207,1712869846842,-1684.95,0.00027397,2]
[322193208,1712869846852,-519.24499784,0.00027397,2]
[322193209,1712869846860,-500.0,0.00027397,2]
[322193210,1712869846870,-864.47,0.00027397,2]
[322193211,1712869846879,-500.0,0.00027397,2]
[322193212,1712869846888,-500.0,0.00027397,2]
[322193213,1712869846897,-1050.08,0.00027397,2]
[322193214,1712869846906,-500.0,0.00027397,2]
[322193215,1712869846916,-500.0,0.00027397,2]
[322193216,1712869846925,-1060.45,0.00027397,2]
[322193217,1712869846934,-500.0,0.00027397,2]
[322193218,1712869846943,-267.00195889,0.00027397,2]
[322193219,1712869846953,-500.0,0.00027397,2]
[322193220,1712869846962,-500.0,0.00027397,2]
[322193221,1712869846971,-534.42,0.00027397,2]
[322193222,1712869846980,-500.0,0.00027397,2]
[322193223,1712869846991,-727.49,0.00027397,2]
[322193224,1712869847002,-500.0,0.00027397,2]
[322193225,1712869847011,-500.0,0.00027397,2]
[322193226,1712869847020,-582.56291782,0.00027397,2]
[322193227,1712869847030,-500.0,0.00027397,2]
[322193228,1712869847040,-500.0,0.00027397,2]
[322193229,1712869847049,-500.0,0.00027397,2]
[322193230,1712869847059,-500.0,0.00027397,2]
[322193231,1712869847069,-500.0,0.00027397,2]
[322193232,1712869847080,-598.73,0.00027397,2]
[322193233,1712869847089,-541.15395965,0.00027397,2]
[322193234,1712869847098,-500.0,0.00027397,2]
[322193235,1712869847108,-500.0,0.00027397,2]
[322193236,1712869847117,-1013.17,0.00027397,2]
[322193237,1712869847127,-500.0,0.00027397,2]
[322193238,1712869847136,-500.0,0.00027397,2]
[322193239,1712869847145,-500.0,0.00027397,2]
[322193240,1712869847155,-552.15,0.00027397,2]
[322193241,1712869847164,-500.0,0.00027397,2]
[322193242,1712869847173,-722.75,0.00027397,2]
[322193243,1712869847183,-500.0,0.00027397,2]
[322193244,1712869847192,-500.0,0.00027397,2]
[322193245,1712869847202,-500.0,0.00027397,2]
[322193246,1712869847211,-1454.96,0.00027397,2]
[322193247,1712869847220,-585.74,0.00027397,2]
[322193248,1712869847230,-600.91,0.00027397,2]
[322193249,1712869847239,-627.17,0.00027397,2]
[322193250,1712869847249,-500.0,0.00027397,2]
[322193251,1712869847258,-500.0,0.00027397,2]
[322193252,1712869847268,-500.0,0.00027397,2]
[322193253,1712869847278,-1870.66,0.00027397,2]
[322193254,1712869847287,-500.0,0.00027397,2]
[322193255,1712869847297,-921.94,0.00027397,2]
[322193256,1712869847306,-500.0,0.00027397,2]
[322193257,1712869847315,-500.0,0.00027397,2]
[322193258,1712869847326,-1288.35,0.00027397,2]
[322193259,1712869847335,-500.0,0.00027397,2]
[322193260,1712869847347,-500.0,0.00027397,2]
[322193261,1712869847357,-670.72,0.00027397,2]
[322193262,1712869847368,-500.0,0.00027397,2]
[322193263,1712869847377,-500.0,0.00027397,2]
[322193264,1712869847387,-1052.23,0.00027397,2]
[322193265,1712869847397,-500.0,0.00027397,2]
[322193266,1712869847406,-1720.31,0.00027397,2]
[322193267,1712869847416,-500.0,0.00027397,2]
[322193268,1712869847426,-500.0,0.00027397,2]
[322193269,1712869847436,-326.90183837,0.00027397,2]
[322193270,1712869847448,-546.56591022,0.00027397,2]
[322193271,1712869847458,-500.0,0.00027397,2]
[322193272,1712869847467,-500.0,0.00027397,2]
[322193273,1712869847476,-2622.22,0.00027397,2]
[322193274,1712869847486,-500.0,0.00027397,2]
[322193275,1712869847495,-500.0,0.00027397,2]
[322193276,1712869847505,-500.0,0.00027397,2]
[322193277,1712869847515,-500.0,0.00027397,2]
[322193278,1712869847525,-1850.14,0.00027397,2]
[322193279,1712869847535,-500.0,0.00027397,2]
[322193280,1712869847545,-500.0,0.00027397,2]
[322193281,1712869847554,-500.0,0.00027397,2]
[322193282,1712869847563,-500.0,0.00027397,2]
[322193283,1712869847574,-500.0,0.00027397,2]
[322193284,1712869847583,-500.0,0.00027397,2]
[322193285,1712869847593,-300.0,0.00027397,2]
[322193286,1712869847602,-500.0,0.00027397,2]
[322193287,1712869847613,-500.0,0.00027397,2]
[322193288,1712869847623,-500.0,0.00027397,2]
[322193289,1712869847632,-500.0,0.00027397,2]
[322193290,1712869847641,-869.29,0.00027397,2]
[322193291,1712869847650,-500.0,0.00027397,2]
[322193292,1712869847660,-500.0,0.00027397,2]
[322193293,1712869847669,-933.06,0.00027397,2]
[322193294,1712869847678,-722.11,0.00027397,2]
[322193295,1712869847687,-500.0,0.00027397,2]
[322193296,1712869847696,-1172.68,0.00027397,2]
[322193297,1712869847706,-500.0,0.00027397,2]
[322193298,1712869847715,-500.0,0.00027397,2]
[322193299,1712869847724,-500.0,0.00027397,2]
[322193300,1712869847733,-500.0,0.00027397,2]
[322193301,1712869847742,-500.0,0.00027397,2]
[322193302,1712869847751,-500.0,0.00027397,2]
[322193303,1712869847761,-500.0,0.00027397,2]
[322193304,1712869847770,-600.68114521,0.00027397,2]
[322193305,1712869847780,-1203.46,0.00027397,2]
[322193306,1712869847789,-993.8,0.00027397,2]
[322193307,1712869847798,-538.37536559,0.00027397,2]
[322193308,1712869847807,-500.0,0.00027397,2]
[322193309,1712869847817,-500.0,0.00027397,2]
[322193310,1712869847828,-500.0,0.00027397,2]
[322193311,1712869847837,-500.0,0.00027397,2]
[322193312,1712869847847,-500.0,0.00027397,2]
[322193313,1712869847856,-500.0,0.00027397,2]
[322193314,1712869847865,-500.0,0.00027397,2]
[322193315,1712869847875,-500.0,0.00027397,2]
[322193316,1712869847885,-500.0,0.00027397,2]
[322193317,1712869847894,-500.0,0.00027397,2]
[322193318,1712869847904,-465.43754232,0.00027397,2]
[322193319,1712869847914,-500.0,0.00027397,2]
[322193320,1712869847927,-150.0,0.00027397,2]
[322193321,1712869847938,-500.0,0.00027397,2]
[322193322,1712869847949,-1318.86,0.00027397,2]
[322193323,1712869847959,-879.12,0.00027397,2]
[322193324,1712869847971,-500.0,0.00027397,2]
[322193325,1712869847981,-500.0,0.00027397,2]
[322193326,1712869847991,-1664.67,0.00027397,2]
[322193327,1712869848000,-500.0,0.00027397,2]
[322193328,1712869848011,-500.0,0.00027397,2]
[322193329,1712869848020,-500.0,0.00027397,2]
[322193330,1712869848030,-500.0,0.00027397,2]
[322193331,1712869848039,-500.0,0.00027397,2]
[322193332,1712869848050,-500.0,0.00027397,2]
[322193333,1712869848061,-500.0,0.00027397,2]
[322193334,1712869848070,-317.90466902,0.00027397,2]
[322193335,1712869848080,-500.0,0.00027397,2]
[322193336,1712869848088,-500.0,0.00027397,2]
[322193337,1712869848098,-500.0,0.00027397,2]
[322193338,1712869848108,-553.15,0.00027397,2]
[322193339,1712869848118,-500.0,0.00027397,2]
[322193340,1712869848128,-916.81,0.00027397,2]
[322193341,1712869848138,-500.0,0.00027397,2]
[322193342,1712869848147,-500.0,0.00027397,2]
[322193343,1712869848157,-500.0,0.00027397,2]
[322193344,1712869848166,-2957.42711476,0.00027397,2]
[322193345,1712869848784,-2042.57288524,0.00027397,2]
[322193346,1712869848794,-500.0,0.00027397,2]
[322193347,1712869848806,-923.4,0.00027397,2]
[322193348,1712869848816,-1597.09,0.00027397,2]
[322193349,1712869848832,-500.0,0.00027397,2]
[322193350,1712869848842,-500.0,0.00027397,2]
[322193351,1712869848851,-500.0,0.00027397,2]
[322193352,1712869848861,-500.0,0.00027397,2]
[322193353,1712869848875,-500.0,0.00027397,2]
[322193354,1712869848887,-500.0,0.00027397,2]
[322193355,1712869848898,-500.0,0.00027397,2]
[322193356,1712869848909,-500.0,0.00027397,2]
[322193357,1712869848920,-505.98968558,0.00027397,2]
[322193358,1712869848931,-500.0,0.00027397,2]
[322193359,1712869848942,-500.0,0.00027397,2]
[322193360,1712869848953,-500.0,0.00027397,2]
[322193361,1712869848964,-1225.4,0.00027397,2]
[322193362,1712869848975,-500.0,0.00027397,2]
[322193363,1712869848987,-500.0,0.00027397,2]
[322193364,1712869848998,-500.0,0.00027397,2]
[322193365,1712869849008,-500.0,0.00027397,2]
[322193366,1712869849020,-500.0,0.00027397,2]
[322193367,1712869849030,-500.0,0.00027397,2]
[322193368,1712869849039,-434.48106713,0.00027397,2]
[322193369,1712869849051,-1736.6,0.00027397,2]
[322193370,1712869849063,-500.0,0.00027397,2]
[322193371,1712869849072,-385.13046435,0.00027397,2]
[322193372,1712869849084,-1687.78,0.00027397,2]
[322193373,1712869849097,-500.0,0.00027397,2]
[322193374,1712869849106,-533.65,0.00027397,2]
[322193375,1712869849116,-500.0,0.00027397,2]
[322193376,1712869849126,-500.0,0.00027397,2]
[322193377,1712869849137,-500.0,0.00027397,2]
[322193378,1712869849148,-533.64202957,0.00027397,2]
[322193379,1712869849158,-500.0,0.00027397,2]
[322193380,1712869849170,-500.0,0.00027397,2]
[322193381,1712869849179,-500.0,0.00027397,2]
[322193382,1712869849189,-500.0,0.00027397,2]
[322193383,1712869849200,-500.0,0.00027397,2]
[322193384,1712869849210,-892.21,0.00027397,2]
[322193385,1712869849223,-500.0,0.00027397,2]
[322193386,1712869849232,-698.09,0.00027397,2]
[322193387,1712869849243,-500.0,0.00027397,2]
[322193388,1712869849254,-500.0,0.00027397,2]
[322193389,1712869849264,-500.0,0.00027397,2]
[322193390,1712869849274,-500.0,0.00027397,2]
[322193391,1712869849284,-500.0,0.00027397,2]
[322193392,1712869849293,-500.0,0.00027397,2]
[322193393,1712869849303,-502.06554399,0.00027397,2]
[322193394,1712869849313,-500.0,0.00027397,2]
[322193395,1712869849322,-500.0,0.00027397,2]
[322193396,1712869849335,-500.0,0.00027397,2]
[322193397,1712869849346,-500.0,0.00027397,2]
[322193398,1712869849356,-1618.97,0.00027397,2]
[322193399,1712869849368,-500.0,0.00027397,2]
[322193400,1712869849378,-500.0,0.00027397,2]
[322193401,1712869849388,-500.0,0.00027397,2]
[322193402,1712869849398,-500.0,0.00027397,2]
[322193403,1712869849408,-513.73528044,0.00027397,2]
[322193404,1712869849417,-500.0,0.00027397,2]
[322193405,1712869849428,-500.0,0.00027397,2]
[322193406,1712869849440,-563.33275822,0.00027397,2]
[322193407,1712869849450,-2495.67,0.00027397,2]
[322193408,1712869849459,-500.0,0.00027397,2]
[322193409,1712869849469,-998.14,0.00027397,2]
[322193410,1712869849478,-500.0,0.00027397,2]
[322193411,1712869849488,-500.0,0.00027397,2]
[322193412,1712869849498,-500.0,0.00027397,2]
[322193413,1712869849507,-500.0,0.00027397,2]
[322193414,1712869849517,-500.0,0.00027397,2]
[322193415,1712869849527,-500.0,0.00027397,2]
[322193416,1712869849537,-500.0,0.00027397,2]
[322193417,1712869849546,-500.0,0.00027397,2]
[322193418,1712869849556,-500.0,0.00027397,2]
[322193419,1712869849566,-500.0,0.00027397,2]
[322193420,1712869849577,-500.0,0.00027397,2]
[322193421,1712869849586,-500.0,0.00027397,2]
[322193422,1712869849596,-500.0,0.00027397,2]
[322193423,1712869849605,-1890.51,0.00027397,2]
[322193424,1712869849614,-500.0,0.00027397,2]
[322193425,1712869849625,-827.22,0.00027397,2]
[322193426,1712869849635,-500.0,0.00027397,2]
[322193427,1712869849646,-23138.05,0.00027397,2]
[322193428,1712869849656,-500.0,0.00027397,2]
[322193429,1712869849667,-500.0,0.00027397,2]
[322193430,1712869849676,-500.0,0.00027397,2]
[322193431,1712869849687,-500.0,0.00027397,2]
[322193432,1712869849697,-500.000001,0.00027397,2]
[322193433,1712869849707,-545.24955695,0.00027397,2]
[322193434,1712869849717,-500.0,0.00027397,2]
[322193435,1712869849726,-500.0,0.00027397,2]
[322193436,1712869849737,-500.0,0.00027397,2]
[322193437,1712869849747,-500.0,0.00027397,2]
[322193438,1712869849758,-500.0,0.00027397,2]
[322193439,1712869849768,-500.0,0.00027397,2]
[322193440,1712869849779,-500.0,0.00027397,2]
[322193441,1712869849789,-500.0,0.00027397,2]
[322193442,1712869849799,-166.57374161,0.00027397,2]
[322193443,1712869849810,-572.85635404,0.00027397,2]
[322193444,1712869849820,-1646.03,0.00027397,2]
[322193445,1712869849834,-500.0,0.00027397,2]
[322193446,1712869849845,-500.0,0.00027397,2]
[322193447,1712869849856,-911.48,0.00027397,2]
[322193448,1712869849867,-767.01,0.00027397,2]
[322193449,1712869849878,-500.0,0.00027397,2]
[322193450,1712869849898,-500.0,0.00027397,2]
[322193451,1712869849911,-1116.76,0.00027397,2]
[322193452,1712869849924,-500.0,0.00027397,2]
[322193453,1712869849935,-500.0,0.00027397,2]
[322193454,1712869849945,-570.82,0.00027397,2]
[322193455,1712869849957,-500.0,0.00027397,2]
[322193456,1712869849969,-500.0,0.00027397,2]
[322193457,1712869849981,-535.08757644,0.00027397,2]
[322193458,1712869849992,-526.62046044,0.00027397,2]
[322193459,1712869850002,-1022.77,0.00027397,2]
[322193460,1712869850012,-500.0,0.00027397,2]
[322193461,1712869850022,-500.0,0.00027397,2]
[322193462,1712869850032,-500.0,0.00027397,2]
[322193463,1712869850042,-500.0,0.00027397,2]
[322193464,1712869850053,-500.0,0.00027397,2]
[322193465,1712869850064,-831.5,0.00027397,2]
[322193466,1712869850074,-500.0,0.00027397,2]
[322193467,1712869850087,-680.97,0.00027397,2]
[322193468,1712869850098,-454.15241677,0.00027397,2]
[322193469,1712869850108,-500.0,0.00027397,2]
[322193470,1712869850118,-500.0,0.00027397,2]
[322193471,1712869850128,-752.98,0.00027397,2]
[322193472,1712869850138,-500.0,0.00027397,2]
[322193473,1712869850148,-500.0,0.00027397,2]
[322193474,1712869850158,-214.26130826,0.00027397,2]
[322193475,1712869850168,-500.0,0.00027397,2]
[322193476,1712869850178,-500.0,0.00027397,2]
[322193477,1712869850187,-500.0,0.00027397,2]
[322193478,1712869850197,-500.0,0.00027397,2]
[322193479,1712869850207,-500.0,0.00027397,2]
[322193480,1712869850217,-500.0,0.00027397,2]
[322193481,1712869850227,-500.0,0.00027397,2]
[322193482,1712869850237,-500.0,0.00027397,2]
[322193483,1712869850247,-521.47642031,0.00027397,2]
[322193484,1712869850257,-500.0,0.00027397,2]
[322193485,1712869850267,-500.0,0.00027397,2]
[322193486,1712869850278,-1499.79,0.00027397,2]
[322193487,1712869850289,-814.1,0.00027397,2]
[322193488,1712869850300,-7400.19,0.00027397,2]
[322193489,1712869850310,-500.0,0.00027397,2]
[322193490,1712869850320,-500.0,0.00027397,2]
[322193491,1712869850331,-500.0,0.00027397,2]
[322193492,1712869850342,-1023.14,0.00027397,2]
[322193493,1712869850352,-700.72,0.00027397,2]
[322193494,1712869850363,-500.0,0.00027397,2]
[322193495,1712869850374,-500.0,0.00027397,2]
[322193496,1712869850384,-500.0,0.00027397,2]
[322193497,1712869850395,-507.06894005,0.00027397,2]
[322193498,1712869850405,-500.0,0.00027397,2]
[322193499,1712869850416,-500.0,0.00027397,2]
[322193500,1712869850426,-950.09,0.00027397,2]
[322193501,1712869850437,-500.0,0.00027397,2]
[322193502,1712869850448,-500.0,0.00027397,2]
[322193503,1712869850458,-1871.77,0.00027397,2]
[322193504,1712869850468,-500.0,0.00027397,2]
[322193505,1712869850478,-3724.71,0.00027397,2]
[322193506,1712869850488,-518.37511854,0.00027397,2]
[322193507,1712869850499,-5395.14,0.00027397,2]
[322193508,1712869850509,-162.62459443,0.00027397,2]
[322193509,1712869850520,-500.0,0.00027397,2]
[322193510,1712869850531,-978.66,0.00027397,2]
[322193511,1712869850542,-1464.27,0.00027397,2]
[322193512,1712869850553,-500.0,0.00027397,2]
[322193513,1712869850564,-500.0,0.00027397,2]
[322193514,1712869850574,-500.0,0.00027397,2]
[322193515,1712869850588,-536.27644778,0.00027397,2]
[322193516,1712869850598,-500.0,0.00027397,2]
[322193517,1712869850607,-500.0,0.00027397,2]
[322193518,1712869850617,-500.0,0.00027397,2]
[322193519,1712869850626,-693.58,0.00027397,2]
[322193520,1712869850636,-500.0,0.00027397,2]
[322193521,1712869850646,-500.0,0.00027397,2]
[322193522,1712869850656,-500.0,0.00027397,2]
[322193523,1712869850666,-984.51,0.00027397,2]
[322193524,1712869850676,-500.0,0.00027397,2]
[322193525,1712869850686,-500.0,0.00027397,2]
[322193526,1712869850696,-500.0,0.00027397,2]
[322193527,1712869850706,-500.0,0.00027397,2]
[322193528,1712869850716,-500.0,0.00027397,2]
[322193529,1712869850726,-500.0,0.00027397,2]
[322193530,1712869850736,-500.0,0.00027397,2]
[322193531,1712869850746,-500.0,0.00027397,2]
[322193532,1712869850756,-500.0,0.00027397,2]
[322193533,1712869850766,-500.0,0.00027397,2]
[322193534,1712869850776,-500.0,0.00027397,2]
[322193535,1712869850786,-500.0,0.00027397,2]
[322193536,1712869850797,-500.0,0.00027397,2]
[322193537,1712869850808,-500.0,0.00027397,2]
[322193538,1712869850820,-500.0,0.00027397,2]
[322193539,1712869851097,-500.0,0.00027397,2]
[322193540,1712869851107,-500.0,0.00027397,2]
[322193541,1712869851116,-500.0,0.00027397,2]
[322193542,1712869851125,-511.98539701,0.00027397,2]
[322193543,1712869851134,-500.0,0.00027397,2]
[322193544,1712869851144,-500.0,0.00027397,2]
[322193545,1712869851154,-500.0,0.00027397,2]
[322193546,1712869851163,-500.0,0.00027397,2]
[322193547,1712869851172,-500.0,0.00027397,2]
[322193548,1712869851183,-4620.04,0.00027397,2]
[322193549,1712869851192,-500.0,0.00027397,2]
[322193550,1712869851201,-500.0,0.00027397,2]
[322193551,1712869851211,-500.0,0.00027397,2]
[322193552,1712869851221,-500.0,0.00027397,2]
[322193553,1712869851230,-934.17,0.00027397,2]
[322193554,1712869851239,-1543.03,0.00027397,2]
[322193555,1712869851249,-500.0,0.00027397,2]
[322193556,1712869851258,-1300.92,0.00027397,2]
[322193557,1712869851267,-500.0,0.00027397,2]
[322193558,1712869851277,-500.0,0.00027397,2]
[322193559,1712869851286,-5425.41,0.00027397,2]
[322193560,1712869851295,-500.0,0.00027397,2]
[322193561,1712869851304,-500.0,0.00027397,2]
[322193562,1712869851313,-2419.88,0.00027397,2]
[322193563,1712869851323,-500.0,0.00027397,2]
[322193564,1712869851332,-500.0,0.00027397,2]
[322193565,1712869851341,-500.0,0.00027397,2]
[322193566,1712869851351,-500.0,0.00027397,2]
[322193567,1712869851362,-1214.31,0.00027397,2]
[322193568,1712869851373,-355.35701287,0.00027397,2]
[322193569,1712869851382,-500.0,0.00027397,2]
[322193570,1712869851392,-500.0,0.00027397,2]
[322193571,1712869851401,-788.68,0.00027397,2]
[322193572,1712869851411,-500.0,0.00027397,2]
[322193573,1712869851420,-500.0,0.00027397,2]
[322193574,1712869851432,-500.0,0.00027397,2]
[322193575,1712869851442,-613.33,0.00027397,2]
[322193576,1712869851452,-500.0,0.00027397,2]
[322193577,1712869851461,-500.0,0.00027397,2]
[322193578,1712869851470,-827.37,0.00027397,2]
[322193579,1712869851481,-500.0,0.00027397,2]
[322193580,1712869851490,-500.0,0.00027397,2]
[322193581,1712869851500,-1948.7,0.00027397,2]
[322193582,1712869851509,-1593.55,0.00027397,2]
[322193583,1712869851518,-9749.83,0.00027397,2]
[322193584,1712869851528,-500.0,0.00027397,2]
[322193585,1712869851538,-500.0,0.00027397,2]
[322193586,1712869851547,-500.0,0.00027397,2]
[322193587,1712869851557,-500.0,0.00027397,2]
[322193588,1712869851566,-835.4,0.00027397,2]
[322193589,1712869851575,-835.4,0.00027397,2]
[322193590,1712869851586,-2131.76,0.00027397,2]
[322193591,1712869851595,-835.4,0.00027397,2]
[322193592,1712869851604,-500.0,0.00027397,2]
[322193593,1712869851613,-835.4,0.00027397,2]
[322193594,1712869851623,-500.0,0.00027397,2]
[322193595,1712869851632,-1560.14,0.00027397,2]
[322193596,1712869851641,-835.4,0.00027397,2]
[322193597,1712869851651,-835.4,0.00027397,2]
[322193598,1712869851660,-1518.32,0.00027397,2]
[322193599,1712869851670,-500.0,0.00027397,2]
[322193600,1712869851679,-835.4,0.00027397,2]
[322193601,1712869851688,-835.4,0.00027397,2]
[322193602,1712869851697,-835.4,0.00027397,2]
[322193603,1712869851706,-835.4,0.00027397,2]
[322193604,1712869851715,-835.4,0.00027397,2]
[322193605,1712869851725,-243.5634847,0.00027397,2]
[322193606,1712869851734,-835.4,0.00027397,2]
[322193607,1712869851743,-835.4,0.00027397,2]
[322193608,1712869851752,-500.0,0.00027397,2]
[322193609,1712869851761,-835.4,0.00027397,2]
[322193610,1712869851770,-835.4,0.00027397,2]
[322193611,1712869851779,-1413.3,0.00027397,2]
[322193612,1712869851789,-500.0,0.00027397,2]
[322193613,1712869851798,-661.44,0.00027397,2]
[322193614,1712869851807,-835.4,0.00027397,2]
[322193615,1712869851816,-835.4,0.00027397,2]
[322193616,1712869851825,-500.0,0.00027397,2]
[322193617,1712869851835,-835.4,0.00027397,2]
[322193618,1712869851844,-835.4,0.00027397,2]
[322193619,1712869851853,-5230.96,0.00027397,2]
[322193620,1712869851863,-835.4,0.00027397,2]
[322193621,1712869851872,-835.4,0.00027397,2]
[322193622,1712869851881,-835.4,0.00027397,2]
[322193623,1712869851890,-2479.01,0.00027397,2]
[322193624,1712869851899,-835.4,0.00027397,2]
[322193625,1712869851908,-500.0,0.00027397,2]
[322193626,1712869851918,-835.41,0.00027397,2]
[322193627,1712869851927,-500.0,0.00027397,2]
[322193628,1712869851935,-579.57030745,0.00027397,2]
[322193629,1712869851944,-3647.95,0.00027397,2]
[322193630,1712869851953,-1464.2,0.00027397,2]
[322193631,1712869851962,-1527.36,0.00027397,2]
[322193632,1712869851971,-500.0,0.00027397,2]
[322193633,1712869851980,-500.0,0.00027397,2]
[322193634,1712869851990,-500.0,0.00027397,2]
[322193635,1712869851999,-500.0,0.00027397,2]
[322193636,1712869852009,-1358.23,0.00027397,2]
[322193637,1712869852017,-500.0,0.00027397,2]
[322193638,1712869852026,-1020.16,0.00027397,2]
[322193639,1712869852035,-668.8,0.00027397,2]
[322193640,1712869852044,-11162.19,0.00027397,2]
[322193641,1712869852053,-500.0,0.00027397,2]
[322193642,1712869852062,-500.0,0.00027397,2]
[322193643,1712869852071,-3874.31,0.00027397,2]
[322193644,1712869852081,-41084.78,0.00027397,2]
[322193645,1712869852094,-500.0,0.00027397,2]
[322193646,1712869852104,-500.0,0.00027397,2]
[322193647,1712869852113,-740.63,0.00027397,2]
[322193648,1712869852123,-500.0,0.00027397,2]
[322193649,1712869852133,-500.0,0.00027397,2]
[322193650,1712869852142,-506.69161251,0.00027397,2]
[322193651,1712869852151,-500.0,0.00027397,2]
[322193652,1712869852160,-500.0,0.00027397,2]
[322193653,1712869852170,-500.0,0.00027397,2]
[322193654,1712869852179,-500.0,0.00027397,2]
[322193655,1712869852189,-500.0,0.00027397,2]